Cogmind - Beta 13 @@@ ROGUE MODE // 2024.05.22 @ 17:43:57 Player: ForestDarkPsy Result: Self-destructed Performance ------------- Evolutions (2) 1000 Regions Visited (3) 600 Robots Destroyed (41) 205 Value Destroyed (1207) 1207 Prototype IDs (2) 40 Alien Tech Used (0) 0 Bonus (0) 0 TOTAL SCORE: 3052 Bonus ------- None Cogmind --------- Core Integrity 483/550 Matter 198/300 Energy 350/350 System Corruption 0% Temperature Cool (1) Movement Rolling (98) Ox1 Location -8/Materials Parts ------- > --- POWER (1) -------- (None) > --- PROPULSION (3) --- Wheel Wheel Armored Wheel > --- UTILITY (5) ------ Cooling System High-capacity Storage Unit High-capacity Battery Hacking Suite > --- WEAPON (2) ------- Improved Light Cannon Improved Light Cannon > --- INVENTORY (20) --- Light Deuterium Engine Carbon-fiber Leg Improved Flight Unit Faulty Improved Flight Unit Faulty Improved Flight Unit Improved Flight Unit Large Storage Unit High-capacity Matter Pod (200) Signal Interpreter Seismic Detector Improved Targeting Computer Hacking Suite Hacking Suite Hacking Suite Light EM Pulse Cannon Autogun Autogun Autogun Improved Light Cannon Maul Peak State ------------ > --- POWER ------------ Light Nuclear Core > --- PROPULSION ------- Wheel Wheel Armored Wheel > --- UTILITY ---------- Cooling System High-capacity Storage Unit High-capacity Battery Medium Armor Plating Hacking Suite > --- WEAPON ----------- Light EM Pulse Cannon Maul > --- INVENTORY -------- Light Deuterium Engine Light Nuclear Core Improved Flight Unit Improved Flight Unit Improved Flight Unit Large Storage Unit High-capacity Matter Pod Signal Interpreter Seismic Detector Improved Targeting Computer Hacking Suite Hacking Suite Hacking Suite Autogun Autogun Autogun Improved Light Cannon Improved Light Cannon [Rating: 24] Favorites ----------- Power Improved Ion Engine Engine Improved Ion Engine Power Core Light Nuclear Core Propulsion Compact Wheel Wheel Compact Wheel Utility Seismic Detector Device Seismic Detector Storage High-capacity Storage Unit Hackware Hacking Suite Protection Medium Armor Plating Weapon EM Shotgun Energy Gun EM Shotgun Energy Cannon Light EM Pulse Cannon Ballistic Gun Assault Rifle Ballistic Cannon Improved Light Cannon Impact Weapon Maul Build | -11 -10 -9 -8 ------- Run | Yrd Mat Mat Mat Slots Evolved 4 | . . 2 2 Power . | . . . . Propulsion 1 | . . . 1 Utility 3 | . . 2 1 Weapon . | . . . . Parts Attached 56 | 8 12 21 15 Power 7 | 1 2 2 2 Engine 5 | 1 2 2 . Core 2 | . . . 2 Reactor . | . . . . Propulsion 8 | 2 1 1 4 Treads . | . . . . Leg . | . . . . Wheel 8 | 2 1 1 4 Hover . | . . . . Flight . | . . . . Utility 15 | 2 3 7 3 Device 5 | 1 1 3 . Storage 5 | 1 1 2 1 Processor . | . . . . Hackware 1 | . . . 1 Protection 4 | . 1 2 1 Artifact . | . . . . Weapon 26 | 3 6 11 6 Energy Gun 13 | 2 4 6 1 Energy Cannon 2 | . . 1 1 Ballistic Gun 4 | 1 2 1 . Ballistic Cannon 3 | . . . 3 Launcher . | . . . . Special Weapon . | . . . . Impact Weapon 4 | . . 3 1 Slashing Weapon . | . . . . Piercing Weapon . | . . . . Special Melee Weapon . | . . . . Unidentified Prototypes . | . . . . Parts Lost 7 | . . . 7 Power 1 | . . . 1 Propulsion 3 | . . . 3 Utility 2 | . . . 2 Weapon 1 | . . . 1 Highest Loss Streak 4 | . . . 4 To Critical Strikes . | . . . . Average Slot Usage (%) 99 | . 99 100 97 Engine 9 | . 13 11 3 Core 1 | . . . 5 Wheel 24 | . 28 22 26 Device 16 | . 10 21 12 Storage 13 | . 14 11 15 Hackware 1 | . . . 8 Protection 8 | . 3 11 8 Energy Gun 12 | . 14 15 2 Energy Cannon 2 | . . 2 3 Ballistic Gun 3 | . 12 . . Ballistic Cannon 1 | . . . 7 Impact Weapon 3 | . . 3 5 Naked Turns . | . . . . Heaviest Build 66 | 12 33 64 66 Greatest Support 44 | 26 32 32 44 Greatest Overweight (x) 2 | . 1 2 2 Average Overweight (x) . | . . 1 1 Largest Inventory Capacity 20 | 8 15 20 20 Average Capacity 17 | 5 14 18 20 Most Carried 20 | 6 15 20 20 Average Carried 15 | 2 12 17 18 Final Capacity 20 | 8 15 20 20 Final Carried 20 | 6 15 20 20 Class Distribution -------------------- 88% | Mutant 11% | Scavenger-Mutant Dominant Class ---------------- Mutant | -10/Materials Mutant | -9/Materials Mutant | -8/Materials Resources | -11 -10 -9 -8 ----------- Run | Yrd Mat Mat Mat Matter Collected 1114 | 301 216 362 235 Remotely . | . . . . Salvage Created 1457 | 135 190 451 681 Parts 92 | 10 15 39 28 Haulers Intercepted 2 | . . . 2 Recyclers Shooed . | . . . . Parts Field Recycled . | . . . . Retrieved Matter . | . . . . Parts Self-Destructed . | . . . . Prevented . | . . . . Kills | -11 -10 -9 -8 ------- Run | Yrd Mat Mat Mat Combat Hostiles Destroyed 27 | . 4 9 14 Guns 12 | . 4 7 1 Cannons 13 | . . 1 12 AOE 2 | . . 1 1 Classes Destroyed 11 | 2 2 3 4 Worker 2 | . . . 2 Builder 2 | . . 1 1 Tunneler 3 | 3 . . . Hauler 2 | . . . 2 Recycler 1 | 1 . . . Operator 1 | . . 1 . Watcher 3 | . 1 1 1 Swarmer 2 | . . . 2 Grunt 21 | . 4 7 10 Brawler 1 | . . . 1 Sentry 3 | . . 2 1 Best Kill Streak 6 | 4 2 3 6 Combat Bots Only 5 | . 2 2 5 Max Kills in Single Turn 2 | 1 1 2 1 Gunslinging . | . . . . Exploded 1 | . . 1 1 Melee . | . . . . Uniques/NPCs Destroyed . | . . . . Combat | -11 -10 -9 -8 -------- Run | Yrd Mat Mat Mat Hostile Shots Fired 127 | . 25 18 84 Missed 44 | . 7 5 32 Damage Taken 1228 | . 255 196 777 Core 180 | . 60 53 67 Absorbed by Shields . | . . . . Core Remaining (%) 87 | 100 76 86 . Volleys Fired 96 | 7 23 20 46 Largest 2 | 2 2 2 2 Hottest 106 | 60 85 105 106 Shots Fired 168 | 14 39 34 81 Gun 98 | 14 39 32 13 Cannon 70 | . . 2 68 Launcher . | . . . . Special . | . . . . Kinetic 76 | 7 16 . 53 Thermal 23 | 7 10 6 . Explosive . | . . . . Electromagnetic 69 | . 13 28 28 Robot Hit Streak 9 | 4 5 8 9 Robot Miss Streak 3 | 2 3 2 3 Penetration Max . | . . . . Secondary Targets . | . . . . Shots Hit Robots 122 | 9 26 30 57 Core Hits 62 | 5 11 19 27 Critical Kills . | . . . . Critical Parts Destroyed 4 | 1 . . 3 Critical Strikes 7 | 1 1 . 5 Burn 1 | . 1 . . Destroy 1 | 1 . . . Blast 2 | . . . 2 Smash 3 | . . . 3 Melee Attacks 17 | . . 9 8 Impact 17 | . . 9 8 Slashing . | . . . . Piercing . | . . . . Sneak Attacks 5 | . . 1 4 Combat Hostiles . | . . . . Follow-up Attacks . | . . . . Damage Inflicted 2751 | 119 384 579 1669 Guns 1007 | 119 384 366 138 Cannons 1004 | . . 45 959 Explosions 206 | . . 75 131 Melee 534 | . . 93 441 Ramming . | . . . . Kinetic 898 | 75 135 . 688 Thermal 454 | 44 127 152 131 Explosive . | . . . . Electromagnetic 865 | . 122 334 409 Impact 534 | . . 93 441 Slashing . | . . . . Piercing . | . . . . Highest Corruption 4 | . . 4 . Average Corruption 3 | . . 3 . Corruption Purged . | . . . . Corruption Blocked . | . . . . Effects 13 | . . 13 . Message Errors 3 | . . 3 . Matter Fused 1 | . . 1 . Heat Flow Errors 3 | . . 3 . Energy Discharges 3 | . . 3 . Parts Fused 1 | . . 1 . Data Loss (major) 1 | . . 1 . Weapon Failures 1 | . . 1 . Overload Shots . | . . . . Overflow Damage 369 | . . . 369 Projectiles 5 | . . . 5 Explosions 5 | . . . 5 Melee 359 | . . . 359 Knockbacks 10 | . . . 10 Impact 2 | . . . 2 Kinetic 8 | . . . 8 Secondary . | . . . . Self-Inflicted Damage 40 | . . 40 . Shots 1 | . . 1 . Rammed . | . . . . Targets Rammed . | . . . . Kicked . | . . . . Crushed . | . . . . Highest Temperature 250 | . 249 250 1 Average Temperature 87 | . 96 58 1 Received Heat Transfer 531 | . 141 75 315 Siege Activations . | . . . . Robots Corrupted 1 | . . . 1 Combat Hostiles . | . . . . Parts Fried 11 | . 1 1 9 Impact Corruptions 10 | . . . 10 Robots Melted . | . . . . Combat Hostiles . | . . . . Parts Melted . | . . . . Heat Transferred 956 | 100 370 286 200 Parts Sabotaged . | . . . . Parts Stolen . | . . . . Parts Stripped . | . . . . Power Chain Reactions 3 | . . 2 1 Alert | -11 -10 -9 -8 ------- Run | Yrd Mat Mat Mat Peak Influence 362 | 20 170 176 362 Initial 37 | . 13 . 37 Average 83 | 10 52 73 153 Maximum Alert Level 1 | . . . 1 Low Security (%) 90 | 100 100 100 58 Level 1 9 | . . . 41 Level 2 . | . . . . Level 3 . | . . . . Level 4 . | . . . . Level 5 . | . . . . High Security . | . . . . Max Security . | . . . . Squads Dispatched 7 | . 1 3 3 Investigation 2 | . . 1 1 Extermination . | . . . . Reinforcement 5 | . 1 2 2 Assault . | . . . . Garrison . | . . . . Intercept . | . . . . Searches Triggered . | . . . . Construction Impeded 1 | . . . 1 Haulers Reinforced . | . . . . Active Scanning Responses . | . . . . Cargo Convoy Interrupts . | . . . . Stealth | -11 -10 -9 -8 --------- Run | Yrd Mat Mat Mat Distress Signals 2 | . 1 1 . Communications Jammed . | . . . . Distress Signals . | . . . . Times Spotted 46 | . 9 11 26 Peak Tracking Total 6 | . 4 3 6 Tactical Retreats 3 | . . 1 2 Traps | -11 -10 -9 -8 ------- Run | Yrd Mat Mat Mat Traps Triggered 4 | . 1 2 1 Indirectly . | . . . . Trap Hack Attempts . | . . . . Triggered . | . . . . Disarmed . | . . . . Reprogrammed . | . . . . Reused . | . . . . Traps Extracted . | . . . . Installed . | . . . . Triggered . | . . . . Machines | -11 -10 -9 -8 ---------- Run | Yrd Mat Mat Mat Machines Disabled 3 | . 1 1 1 Max in Single Turn 1 | . 1 1 1 Machines Repaired . | . . . . Machines Dismantled . | . . . . Machines Sabotaged . | . . . . Overloaded Fab Kills . | . . . . Hacking | -11 -10 -9 -8 --------- Run | Yrd Mat Mat Mat Machines Accessed 5 | . 1 3 1 Terminals 4 | . 1 2 1 Fabricators . | . . . . Repair Stations . | . . . . Recycling Units . | . . . . Scanalyzers 1 | . . 1 . Garrison Access . | . . . . Total Hacks 13 | . 3 8 2 Successful 8 | . 2 4 2 Failed 5 | . 1 4 . Catastrophic . | . . . . Database Lockouts . | . . . . Manual 6 | . 1 4 1 Terminals 12 | . 3 7 2 Fabricators . | . . . . Repair Stations . | . . . . Recycling Units . | . . . . Scanalyzers 1 | . . 1 . Garrison Access . | . . . . Terminal Hacks 3 | . 1 1 1 Prototype ID Bank 1 | . . . 1 Locate Traps 2 | . 1 1 . Fabricator Hacks . | . . . . Repair Station Hacks . | . . . . Recycling Unit Hacks . | . . . . Scanalyzer . | . . . . Garrison Access Hacks . | . . . . Unauthorized Hacks 5 | . 1 3 1 Terminals 4 | . 1 2 1 Botnet 4 | . 1 2 1 Fabricators . | . . . . Repair Stations . | . . . . Recycling Units . | . . . . Scanalyzers 1 | . . 1 . Extract 1 | . . 1 . Garrison Access . | . . . . Data Cores Recovered . | . . . . Used . | . . . . Hacking Detections 4 | . 1 2 1 Full Trace Events . | . . . . Feedback Events . | . . . . Feedback Blocked . | . . . . Robot Schematics Acquired . | . . . . Robots Built . | . . . . Authchips . | . . . . Time . | . . . . Total Robot Build Rating . | . . . . Part Schematics Acquired 8 | . . 8 . Parts Built . | . . . . Authchips . | . . . . Time . | . . . . Total Part Build Rating . | . . . . Parts Repaired . | . . . . Time . | . . . . Parts Recycled . | . . . . Recycled Matter . | . . . . Retrieved Matter . | . . . . Retrieved Components . | . . . . Parts Scanalyzed . | . . . . Part Schematics Acquired . | . . . . Parts Damaged . | . . . . Bothacking | -11 -10 -9 -8 ------------ Run | Yrd Mat Mat Mat Used RIF Installer . | . . . . Robots Hacked . | . . . . Non-combat . | . . . . Combat . | . . . . Robot Hacks Applied . | . . . . Relay Couplers Released . | . . . . Fabnet Peak Effective % . | . . . . Robots Rewired . | . . . . Allies Hacked . | . . . . Hacks Repelled . | . . . . Allies | -11 -10 -9 -8 -------- Run | Yrd Mat Mat Mat Total Allies . | . . . . Largest Group . | . . . . Highest-Rated Group . | . . . . Highest-Rated Ally . | . . . . Total Orders . | . . . . Ally Attacks . | . . . . Total Damage . | . . . . Kills . | . . . . Allies Corrupted . | . . . . Allies Melted . | . . . . Intel | -11 -10 -9 -8 ------- Run | Yrd Mat Mat Mat Robot Analysis Total . | . . . . Derelict Logs Recovered . | . . . . Drone Launches . | . . . . Drone Recoveries . | . . . . Exploration | -11 -10 -9 -8 ------------- Run | Yrd Mat Mat Mat Turns Passed 1992 | 116 478 947 451 Spaces Moved 1265 | 86 326 649 204 Core 2 | 2 . . . Treads . | . . . . Legs . | . . . . Wheels 1263 | 84 326 649 204 Hover . | . . . . Flight . | . . . . Fastest Speed 50 | 50 90 100 98 Average Speed 110 | 89 101 116 111 Slowest Speed 125 | 100 115 125 115 Overloaded Moves . | . . . . Propulsion Burnouts . | . . . . Robots Hopped . | . . . . Cave-ins Triggered . | . . . . Exploration Rate (%) 28 | 3 48 42 22 Regions Visited 3 Branch Regions . Pre-discovered Areas . | . . . . Known Exits Taken . | . . . . Unknown Exits Taken 3 | 1 1 1 . Scrap Searched . | . . . . Spaces Dug 10 | . . 8 2 Terrain Destroyed 18 | . . 9 9 Melee 10 | . . 8 2 Projectile 2 | . . . 2 AOE 6 | . . 1 5 Terrain Rammed . | . . . . Walls Destroyed . | . . . . Machines Disabled . | . . . . Actions | -11 -10 -9 -8 --------- Run | Yrd Mat Mat Mat Total 1649 | 106 428 788 327 Wait 156 | . 57 56 43 Move 1262 | 85 325 648 204 Hop . | . . . . Pick Up 39 | 6 9 17 7 Fast Attach 13 | 7 3 2 1 Attach 11 | . . 4 7 Detach 1 | . . . 1 Swap 32 | 1 9 15 7 Drop 22 | . 2 17 3 Fire 96 | 7 23 20 46 Melee 17 | . . 9 8 Ram . | . . . . Kick . | . . . . Crush . | . . . . Escape Stasis . | . . . . Rewire . | . . . . Trap . | . . . . Miscellaneous . | . . . . Route ------- -11/Scrapyard -10/Materials (discovered 2 exits: *Mat / [*Min]) -9/Materials -8/Materials (discovered 1 exit: [*Sto]) History --------- Turn | Location | Event 8 | -11/Scrapyard | Discovered new exit (range 16) 117 | -11/Scrapyard | Entered Materials 313 | -10/Materials | Build established: Mutant 317 | -10/Materials | Discovered new exit (range 12) 583 | -10/Materials | Discovered new exit (range 10) 595 | -10/Materials | Entered another Materials area 595 | -9/Materials | Evolved 2 slots: Utility x2 860 | -9/Materials | Discovered new exit (range 3) 1542 | -9/Materials | Entered another Materials area 1542 | -8/Materials | Evolved 2 slots: Propulsion x1, Utility x1 1665 | -8/Materials | Discovered new exit (range 16) 1744 | -8/Materials | Lost 4 parts (2n1u1w) 1993 | -8/Materials | Self-destructed Last Messages --------------- 01954_ U-05 Engineer lays Concrete. 01956_ U-05 Engineer destroyed. 01957_ K-01 Serf collects debris. 01957_ G-47 Trooper destroyed. 01960_ K-01 Serf collects debris. 01968_ K-01 Serf Wheel blasted off. 01968_ K-01 Serf destroyed. 01971_ Repair Station disabled. 01971_ Backup Laser I tumbles out of repair station. 01971_ Backup Propulsion I tumbles out of repair station. 01971_ Backup Laser I tumbles out of repair station. 01971_ G-47 Trooper knocked back. 01974_ G-47 Trooper destroyed. 01977_ Acquired 1 matter. 01978_ Acquired 32 matter. 01987_ G-47 Trooper knocked back. 01990_ G-47 Trooper destroyed. 01993_ Nuclear Reactor explodes. 01993_ Lgt. Nuclear Core destroyed. 01993_ Med. Armor Plating destroyed. Map ----- +----------------------------------------------------+ | ????????????########### *[%*%% ! #???????? | | ????????????#* # =% #???????? | | ????????????# # %= [= #???????? | | ????????????# # =####### #???????? | | ????????????# """ """ # #####?## ##???????? | | ????????????# """ """[#! #??????? #????????? | | ????????????# """ """%+= #??????? #????????? | | ????????????# %#% #??????? #????????? | | ????????????# % %# #??????? ????????? | | ????????????######+#### #??????? ???????? | | ?????????????????#%#?? #?????? ??????? | | ??????????########+#?? #?????? ?????? | | ??????????# ![%#?# < +??????? """"?????? | | ??????????# =#?# #??????? "????????? | | ??????????# #?# #??????? "????????? | | ??????????# #?#######??????? ??????????? | | ??????????# % #??????????????????????????? | | ??????????# #??????????????????????????? | | ??????????#% #???????????????? #????????? | | ??????????#* #####??????????? #????????? | | ??????????# == ###########m #????????? | | ??????????#### ==%% #????????? | | ????????????# = g % %%% #????????? | | ????????????# u[ #????????? | | ????????????# !% #????????? | | ????????????# ! @ %%% #????????? | | ????????????# [ !######?????????????? | | ????????????# **=#??????????????????? | | ????????????# R g%#??????????????????? | | ????????? """g%#??????????????????? | | ??????? / % ?????????????????? | | ???????? a ???????????????? | | ???????? ##T## ??????????????? | | ???????? ?#####+########?????????????? | | ???????? ##????? ?????????????????????? | | ????????? ??????? ?????????????????????? | | ????????? ??????? ?????????????????????? | | ?????????? ??????? ?????????????????????? | | ????????????##???????? ?????????????????????? | | ?????????????????????? ?????????????????????? | | ??????????????????????##??????????????????????? | | ??????????????????????????????????????????????? | | ??????????????????????????????????????????????? | | ??????????????????????????????????????????????? | | ??????????????????????????????????????????????? | | ??????????????????????????????????????????????? | | ??????????????????????????????????????????????? | | ??????????????????????????????????????????????? | | ??????????????????????????????????????????????? | | ??????????????????????????????????????????????? | +----------------------------------------------------+ Best States ------------- Heat Dissipation 53 Energy Generation 14 Energy Capacity 515 Matter Stores 300 Matter Capacity 300 Sight Range 16 Terrain Scan Density 10 Armor Coverage 225 Evasion (%) 42 Offensive Hacking 10 Item Schematics ----------------- Hpw. Tractor Beam | -9/Materials | Extracted Med. Matter Pod | -9/Materials | Extracted Hcp. Matter Pod | -9/Materials | Extracted Welding Torch | -9/Materials | Extracted Grenade Launcher | -9/Materials | Extracted Sml. Laser | -9/Materials | Extracted Structural Scanner | -9/Materials | Extracted Utility Shielding | -9/Materials | Extracted Robot Schematics ------------------ None Fabricated ------------ Nothing Alien Tech Used ----------------- None Achievements -------------- None Challenges ------------ None Game ------ Seed ActuatorMassClaymores Manual? 0 Play Time 00:43:01 Cumulative 175.2 hours Start 2024.05.21 @ 12:38:21 End 2024.05.22 @ 17:43:57 Sessions 4 Manual Loads 0 Difficulty Rogue Special Mode None Game No. 153 Rogue 153 Adventurer 0 Explorer 0 Win Type - Total 0 Types 0/0/0/0/0/0/0/0/0 Lore% 40 Gallery% 46 Achievement% 36 Wizard Run 0 Options --------- Layout 0 ASCII 1 Keyboard 0 Movement Mouse Keybinds 0 Fullscreen 1 Font 18/SmallcapsGlow Map View 76x50 Zoom Use 0% Tactical HUD 1 Map Filters NONE Filters NONE Steam 1 RUN: 8e4533c1-848b-4609-8b49-9a90ef19ded3